bitfinex/quotes_SOLUSD_20220306
["timestamp","ask_amount","ask_price","bid_price","bid_amount"]
[1646567079212,3.14428955,86.559,86.48,17.3479]
[1646567079213,5.779,86.558,86.48,17.3479]
[1646567079413,6.31944119,86.557,86.48,17.3479]
[1646567079612,5.779,86.556,86.48,17.3479]
[1646567079813,6.31944119,86.555,86.48,17.3479]
[1646567080012,64.31647962,86.553,86.48,17.3479]
[1646567080215,5.779,86.552,86.48,17.3479]
[1646567083117,64.31647962,86.553,86.48,37.33287638]
[1646567083317,24.8954,86.556,86.48,48.62110601]
[1646567083517,24.8954,86.556,86.48,69.11655003]
[1646567084318,61.10341295,86.555,86.48,69.11655003]
[1646567086121,5.779,86.565,86.48,69.11655003]
[1646567086319,5.779,86.565,86.5,17.3383]
[1646567086521,3.14428955,86.583,86.5,17.3383]
[1646567086720,3.14428955,86.585,86.5,17.3383]
[1646567086920,3.14428955,86.586,86.501,12.83153586]
[1646567087222,63.11305775,86.57,86.502,22.051087]
[1646567088220,23.6008,86.565,86.52,17.3398]
[1646567088423,23.6008,86.565,86.521,47.71295799]
[1646567088823,23.6008,86.565,86.52,17.3398]
[1646567089022,23.6008,86.565,86.503,24.836]
[1646567089223,23.6008,86.565,86.51,17.3427]
[1646567089422,5.777,86.564,86.51,17.3427]
[1646567090124,23.6008,86.565,86.511,55.81205519]
[1646567091025,23.6008,86.565,86.51,17.3427]
[1646567092026,23.6008,86.565,86.51,77.86320728]
[1646567097833,116.1,86.614,86.51,77.86320728]
[1646567097834,5.777,86.588,86.51,77.86320728]
[1646567098035,6.31939047,86.587,86.51,77.86320728]
[1646567098234,23.4749,86.588,86.51,77.86320728]
[1646567098436,23.4749,86.588,86.51,90.69474314]
[1646567105141,116.1,86.587,86.51,90.69474314]
[1646567105341,122.41953738,86.587,86.51,90.69474314]
[1646567105541,23.4749,86.588,86.51,77.86320728]
[1646567106140,6.31986672,86.587,86.51,77.86320728]
[1646567106340,5.777,86.586,86.51,77.86320728]
[1646567106542,6.31986672,86.585,86.51,77.86320728]
[1646567106741,5.777,86.584,86.51,77.86320728]
[1646567106942,23.4749,86.588,86.51,77.86320728]
[1646567107342,6.31951822,86.587,86.51,77.86320728]
[1646567107641,23.4749,86.588,86.51,77.86320728]
[1646567110046,6.31950452,86.587,86.51,77.86320728]
[1646567110245,23.4749,86.588,86.51,77.86320728]
[1646567111244,116.1,86.587,86.51,77.86320728]
[1646567112145,23.4749,86.588,86.51,77.86320728]
[1646567112346,23.4749,86.588,86.51,97.84818366]
[1646567112545,23.4749,86.588,86.51,110.67971952]
[1646567117547,3.14428955,86.599,86.511,20.49544402]
[1646567117747,3.14428955,86.599,86.514,116.1]
[1646567117948,58.6605828,86.607,86.531,12.06614861]
[1646567118148,24.1674,86.608,86.533,120.29643272]
[1646567118548,24.1674,86.608,86.534,2.83613526]
[1646567118747,24.1674,86.608,86.534,55.423525]
[1646567118946,24.1674,86.608,86.55,17.3284]
[1646567119147,51.01287081,86.607,86.55,17.3284]
[1646567122969,56.78787081,86.607,86.55,17.3284]
[1646567123972,116.1,86.606,86.55,17.3284]
[1646567124169,56.78787081,86.607,86.55,17.3284]
[1646567124371,116.1,86.606,86.55,17.3284]
[1646567124870,51.01287081,86.607,86.55,17.3284]
[1646567125071,5.775,86.606,86.55,17.3284]
[1646567125272,121.875,86.606,86.55,17.3284]
[1646567125674,6.31839699,86.605,86.55,17.3284]
[1646567125872,5.775,86.604,86.55,17.3284]
[1646567126075,6.31839699,86.603,86.55,17.3284]
[1646567126673,6.31839699,86.604,86.55,17.3284]
[1646567126873,5.775,86.605,86.55,17.3284]
[1646567127474,6.31826847,86.604,86.55,17.3284]
[1646567128275,6.31826847,86.605,86.55,17.3284]
[1646567130377,6.31826847,86.605,86.55,44.91490972]
[1646567130575,6.31826847,86.605,86.551,15.83180075]
[1646567130778,51.01287081,86.607,86.56,17.3271]
[1646567131579,51.01287081,86.607,86.553,5.774]
[1646567131778,51.01287081,86.607,86.56,17.3327]
[1646567133281,116.1,86.606,86.525,25.00088002]
[1646567133481,116.1,86.596,86.492,23.3316]
[1646567133684,116.1,86.592,86.492,23.3316]
[1646567133881,3.14428955,86.587,86.493,5.777]
[1646567134081,5.777,86.586,86.493,5.777]
[1646567134283,116.1,86.584,86.493,5.777]
[1646567134482,5.777,86.583,86.493,5.777]
[1646567134681,116.1,86.579,86.5,17.3448]
[1646567134882,116.1,86.576,86.501,5.777]
[1646567135084,5.777,86.575,86.501,5.777]
[1646567135281,5.777,86.575,86.5,5.777]
[1646567135482,116.1,86.573,86.5,5.777]
[1646567135684,5.777,86.572,86.5,5.777]
[1646567136086,5.777,86.572,86.51,17.3434]
[1646567138486,121.877,86.573,86.511,5.777]
[1646567139388,121.877,86.573,86.512,53.23113427]
[1646567139989,5.777,86.573,86.52,17.341]
[1646567140389,23.8399,86.574,86.52,17.341]
[1646567140888,23.8399,86.574,86.521,5.777]
[1646567141093,23.8399,86.574,86.53,17.3368]
[1646567144791,23.8399,86.574,86.54,17.3348]
[1646567145491,23.3262,86.579,86.54,17.3348]
[1646567146593,58.97833069,86.578,86.54,17.3348]
[1646567153922,23.3262,86.579,86.54,17.3348]
[1646567154122,5.776,86.603,86.54,17.3348]
[1646567154323,23.5825,86.604,86.541,5.775]
[1646567154523,23.5825,86.604,86.55,17.3319]
[1646567154925,59.8955845,86.603,86.55,17.3319]
[1646567155323,5.775,86.602,86.55,17.3319]
[1646567158328,121.875,86.602,86.521,5.775]
[1646567158528,3.14428955,86.595,86.521,5.775]
[1646567158731,5.776,86.594,86.521,5.775]
[1646567158931,116.1,86.593,86.521,5.775]
[1646567159131,116.1,86.591,86.521,5.775]
[1646567159331,116.1,86.589,86.521,5.775]
[1646567159531,5.776,86.588,86.521,5.775]
[1646567159732,116.1,86.586,86.521,5.775]
[1646567159935,5.776,86.586,86.521,5.775]
[1646567160233,53.34863373,86.59,86.522,25.07317638]
[1646567160432,53.34863373,86.59,86.522,48.81167638]
[1646567161034,53.34863373,86.59,86.531,14.11951494]
[1646567161233,1.56920346,86.581,86.531,14.11951494]
[1646567161436,1.56920346,86.578,86.531,14.11951494]
[1646567161633,1.56920346,86.576,86.531,14.11951494]
[1646567161835,1.56920346,86.577,86.531,14.11951494]
[1646567162234,1.56920346,86.578,86.531,14.11951494]
[1646567162834,1.56920346,86.577,86.531,14.11951494]
[1646567163234,1.56920346,86.578,86.54,17.3363]
[1646567163433,58.84628632,86.577,86.54,17.3363]
[1646567164035,1.56920346,86.577,86.54,17.3363]
[1646567164937,1.56920346,86.59,86.54,17.3363]
[1646567165138,26.38660346,86.592,86.54,34.3489]
[1646567165337,24.8174,86.592,86.54,34.3489]
[1646567165539,1.56920346,86.594,86.54,34.3489]
[1646567166039,1.56920346,86.593,86.54,34.3489]
[1646567166241,1.56920346,86.596,86.54,34.3489]
[1646567166638,1.56920346,86.597,86.54,34.3489]
[1646567167239,59.7002519,86.603,86.54,34.3489]
[1646567167240,1.56920346,86.595,86.54,34.3489]
[1646567167640,1.56920346,86.593,86.54,34.3489]
[1646567167843,1.57182631,86.6,86.542,40.0]
[1646567168042,1.57182631,86.611,86.56,17.3267]
[1646567168442,1.57182631,86.615,86.561,18.67431515]
[1646567168641,1.57182631,86.624,86.561,73.43339822]
[1646567168842,1.57182631,86.624,86.562,153.95809573]
[1646567169042,24.3048,86.672,86.57,17.322]
[1646567169043,1.57182631,86.626,86.57,17.322]
[1646567169243,1.57182631,86.627,86.57,17.322]
[1646567169445,1.57182631,86.627,86.571,70.59726296]
[1646567169643,1.57182631,86.635,86.571,73.43339822]
[1646567169843,1.57182631,86.635,86.572,97.19949822]
[1646567170046,1.57182631,86.636,86.572,97.19949822]
[1646567170349,1.57182631,86.635,86.573,73.43339822]
[1646567170546,1.57182631,86.636,86.573,73.43339822]
[1646567170746,1.57182631,86.636,86.574,73.43339822]
[1646567171048,1.57182631,86.636,86.575,57.59521833]
[1646567171246,1.57182631,86.636,86.58,17.3225]
[1646567171447,66.35670784,86.636,86.581,14.80665838]
[1646567171645,66.35670784,86.636,86.581,58.42407829]
[1646567171845,1.57182631,86.636,86.581,57.62468132]
[1646567172045,1.57182631,86.636,86.581,30.64483827]
[1646567172244,1.57182631,86.636,86.581,14.80665838]
[1646567172855,1.57182631,86.64,86.59,17.3222]
[1646567173048,116.1,86.655,86.59,17.3222]
[1646567173049,1.57182631,86.634,86.59,17.3222]
[1646567173247,1.57182631,86.635,86.59,17.3222]
[1646567173849,59.50536746,86.634,86.59,17.3222]
[1646567174049,61.07719377,86.634,86.59,17.3222]
[1646567175654,1.57182631,86.635,86.59,17.3222]
[1646567175855,1.57182631,86.636,86.59,17.3222]
[1646567176057,1.57182631,86.638,86.59,17.3222]
[1646567176256,1.57182631,86.639,86.59,17.3222]
[1646567176457,1.57182631,86.64,86.59,34.2906]
[1646567176859,1.57182631,86.64,86.591,26.97984305]
[1646567177056,24.6557,86.655,86.591,54.75908307]
[1646567177057,1.57182631,86.655,86.591,54.75908307]
[1646567177256,1.57182631,86.655,86.61,17.3166]
[1646567177457,1.57182631,86.657,86.61,17.3166]
[1646567177856,1.57182631,86.666,86.611,23.15063958]
[1646567178061,1.57182631,86.68,86.611,23.15063958]
[1646567178259,1.57182631,86.68,86.612,26.97984305]
[1646567178658,59.14636205,86.689,86.612,26.97984305]
[1646567178659,60.71818836,86.689,86.62,17.3128]
[1646567179059,1.57182631,86.681,86.62,17.3128]
[1646567179259,1.57182631,86.678,86.613,2.83613526]
[1646567179458,1.57182631,86.672,86.612,17.5705]
[1646567179658,1.57182631,86.67,86.612,17.5705]
[1646567179875,1.57182631,86.67,86.585,2.83613526]
[1646567180077,7.34282631,86.669,86.596,60.47004883]
[1646567180280,84.71992945,86.668,86.596,60.47004883]
[1646567180880,5.771,86.667,86.596,60.47004883]
[1646567181377,5.771,86.667,86.585,2.83613526]
[1646567181575,5.771,86.667,86.592,26.97984305]
[1646567181976,121.871,86.667,86.592,26.97984305]
[1646567182180,121.871,86.667,86.61,17.3218]
[1646567182378,5.771,86.667,86.611,51.26757488]
[1646567182578,84.71992945,86.668,86.611,51.26757488]
[1646567183184,24.905,86.668,86.611,51.26757488]
[1646567183480,24.905,86.668,86.62,17.3175]
[1646567184180,55.43969551,86.667,86.62,17.3175]
[1646567184580,24.905,86.668,86.62,17.3175]
[1646567185480,1.57182631,86.682,86.621,2.83613526]
[1646567185682,1.57182631,86.692,86.64,17.3132]
[1646567185882,47.90301657,86.694,86.641,21.31908101]
[1646567186481,5.769,86.699,86.642,2.83613526]
[1646567186681,1.57182631,86.707,86.642,2.83613526]
[1646567186881,1.57182631,86.716,86.65,17.312]
[1646567187082,5.768,86.715,86.65,17.312]
[1646567187288,5.768,86.715,86.651,2.83613526]
[1646567187480,52.92075839,86.714,86.651,2.83613526]
[1646567187681,5.768,86.713,86.651,2.83613526]
[1646567187881,5.768,86.713,86.67,17.3101]
[1646567188484,116.1,86.713,86.651,2.83613526]
[1646567188682,140.7526,86.713,86.643,23.2123]
[1646567188882,5.768,86.712,86.643,23.2123]
[1646567189283,1.57182631,86.707,86.643,23.2123]
[1646567189482,1.57182631,86.706,86.643,23.2123]
[1646567189683,1.57182631,86.707,86.643,23.2123]
[1646567189982,1.57182631,86.706,86.643,23.2123]
[1646567190182,1.57182631,86.706,86.65,17.3147]
[1646567191185,1.57182631,86.705,86.65,17.3147]
[1646567191585,1.57182631,86.704,86.65,17.3147]
[1646567191984,1.57182631,86.705,86.65,17.3147]
[1646567192786,1.57182631,86.706,86.65,17.3147]
[1646567193187,1.57182631,86.705,86.65,17.3147]
[1646567193388,1.57182631,86.705,86.651,2.83613526]
[1646567193592,1.57182631,86.728,86.67,17.2993]
[1646567193789,1.57182631,86.731,86.671,22.6772]
[1646567193989,54.57,86.776,86.671,22.6772]
[1646567193990,1.57182631,86.748,86.671,25.51333526]
[1646567194191,1.57182631,86.745,86.672,35.94073441]
[1646567194492,1.57182631,86.745,86.674,5.95352881]
[1646567194692,1.57182631,86.749,86.69,17.2998]
[1646567194890,1.57182631,86.749,86.675,42.81802294]
[1646567195092,5.766,86.748,86.675,29.81597831]
[1646567195291,53.92827774,86.74,86.675,2.83613526]
[1646567195491,55.50010405,86.74,86.675,2.83613526]
[1646567195890,24.18222631,86.739,86.675,2.83613526]
[1646567196094,116.1,86.738,86.68,17.3076]
[1646567196392,1.57182631,86.734,86.671,39.6576]
[1646567196791,1.57182631,86.73,86.671,39.6576]
[1646567197392,1.57182631,86.729,86.671,39.6576]
[1646567197794,1.57182631,86.728,86.671,39.6576]
[1646567198196,1.57182631,86.728,86.68,17.3083]
[1646567199697,1.57182631,86.727,86.68,17.3083]
[1646567200299,1.57182631,86.728,86.68,17.3083]
[1646567201302,1.57182631,86.727,86.68,17.3083]
[1646567202503,1.57182631,86.729,86.68,17.3083]
[1646567202706,1.57182631,86.727,86.68,17.3083]
[1646567203804,1.57182631,86.727,86.681,2.83613526]
[1646567204003,1.57182631,86.732,86.69,17.3035]
[1646567204404,1.57182631,86.735,86.691,2.83613526]
[1646567204605,1.57182631,86.737,86.691,2.83613526]
[1646567204812,22.6104,86.739,86.691,2.83613526]
[1646567205006,22.6104,86.739,86.692,13.39366362]
[1646567205406,22.6104,86.739,86.693,2.83613526]
[1646567205608,1.57182631,86.737,86.693,2.83613526]
[1646567206234,1.57182631,86.737,86.7,17.3004]
[1646567206430,1.57182631,86.741,86.7,17.3004]
[1646567206630,1.57182631,86.741,86.701,2.83613526]
[1646567207039,1.57182631,86.747,86.701,2.83613526]
[1646567207435,1.07182631,86.747,86.701,2.83613526]
[1646567207638,5.765,86.771,86.701,2.83613526]
[1646567207836,6.30695919,86.77,86.701,2.83613526]
[1646567208037,5.764,86.769,86.701,2.83613526]
[1646567208338,6.30695919,86.768,86.71,17.2986]
[1646567208538,5.764,86.767,86.71,17.2986]
[1646567208740,51.7234417,86.766,86.71,17.2986]
[1646567208937,6.30695919,86.765,86.71,17.2986]
[1646567211739,3.14428955,86.763,86.71,17.2986]
[1646567211940,3.14428955,86.762,86.71,17.2986]
[1646567212140,23.9934,86.761,86.71,17.2986]
[1646567212340,6.30695919,86.76,86.71,17.2986]
[1646567214741,3.14428955,86.759,86.71,17.2986]
[1646567214942,9.45124874,86.76,86.71,17.2986]
[1646567215142,6.30695919,86.758,86.72,17.2976]
[1646567215343,6.30695919,86.76,86.72,17.2976]
[1646567215541,9.45124874,86.76,86.72,17.2976]
[1646567216143,3.14428955,86.759,86.72,17.2976]
[1646567216344,9.45124874,86.76,86.72,17.2976]
[1646567216546,3.14428955,86.757,86.72,17.2976]
[1646567216944,3.14428955,86.756,86.72,17.2976]
[1646567217543,3.14428955,86.758,86.72,17.2976]
[1646567217745,3.14428955,86.757,86.72,17.2976]
[1646567217944,3.14428955,86.756,86.72,17.2976]
[1646567218646,3.14428955,86.755,86.72,17.2976]
[1646567218844,3.14428955,86.756,86.72,17.2976]
[1646567219046,3.14428955,86.756,86.73,17.298]
[1646567219245,3.14428955,86.759,86.73,17.298]
[1646567219846,6.30695919,86.758,86.73,17.298]
[1646567220046,6.30695919,86.765,86.73,17.298]
[1646567221047,6.30695919,86.765,86.716,17.6789]
[1646567221248,22.6011,86.764,86.716,17.6789]
[1646567221448,6.30695919,86.763,86.706,2.83613526]
[1646567221652,116.1,86.762,86.693,17.4233]
[1646567221849,116.1,86.759,86.663,2.83613526]
[1646567222051,116.1,86.757,86.663,20.45493526]
[1646567222352,116.1,86.755,86.663,20.45493526]
[1646567222649,5.766,86.754,86.663,20.45493526]
[1646567222850,116.1,86.753,86.663,17.6188]
[1646567223049,23.46211178,86.752,86.663,17.6188]
[1646567223249,116.1,86.749,86.67,17.3102]
[1646567223449,5.766,86.748,86.67,17.3102]
[1646567223649,116.1,86.747,86.67,17.3102]
[1646567223850,5.766,86.746,86.67,17.3102]
[1646567224050,116.1,86.745,86.67,17.3102]
[1646567224353,116.1,86.743,86.67,17.3102]
[1646567224651,116.1,86.741,86.67,17.3102]
[1646567225052,116.1,86.738,86.67,17.3102]
[1646567225251,12.07295919,86.737,86.67,17.3102]
[1646567225456,145.48805919,86.736,86.67,17.3102]
[1646567225751,116.1,86.734,86.67,17.3102]
[1646567225953,12.07295919,86.733,86.67,17.3102]
[1646567226153,6.30695919,86.732,86.67,17.3102]
[1646567226354,121.866,86.731,86.67,17.3102]
[1646567226553,116.1,86.729,86.67,17.3102]
[1646567226855,116.1,86.727,86.67,17.3102]
[1646567227053,6.30695919,86.726,86.67,17.3102]
[1646567227855,6.30695919,86.726,86.663,17.6188]
[1646567228154,116.1,86.733,86.663,17.6188]
[1646567228355,12.07395919,86.732,86.663,20.45493526]
[1646567228554,116.1,86.731,86.663,20.45493526]
[1646567228853,116.1,86.729,86.664,46.01547736]
[1646567229054,116.1,86.727,86.664,46.01547736]
[1646567229254,12.07395919,86.726,86.664,48.85161262]
[1646567229458,23.0811,86.736,86.67,17.3102]
[1646567229856,23.0811,86.736,86.671,51.18966689]
[1646567230256,23.0811,86.736,86.672,65.86771738]
[1646567230457,23.0811,86.736,86.69,17.3052]
[1646567231259,23.0811,86.736,86.673,51.18966689]
[1646567231459,23.0811,86.736,86.673,2.83613526]
[1646567231661,128.17542958,86.735,86.673,2.83613526]
[1646567231859,128.17542958,86.735,86.65,24.7152]
[1646567231860,116.1,86.733,86.657,14.67805049]
[1646567232063,116.1,86.731,86.657,14.67805049]
[1646567232290,116.1,86.729,86.643,2.83613526]
[1646567232460,116.1,86.727,86.643,2.83613526]
[1646567232661,12.07642958,86.728,86.624,17.51418575]
[1646567232662,116.1,86.709,86.624,17.51418575]
[1646567232860,116.1,86.707,86.624,17.51418575]
[1646567233059,12.07842958,86.706,86.624,14.67805049]
[1646567233259,116.1,86.705,86.624,14.67805049]
[1646567233462,116.1,86.703,86.624,14.67805049]
[1646567233661,116.1,86.701,86.624,14.67805049]
[1646567234061,5.769,86.7,86.624,14.67805049]
[1646567234262,116.1,86.699,86.624,14.67805049]
[1646567234461,5.769,86.698,86.625,25.61257336]
[1646567235061,5.769,86.698,86.626,2.83613526]
[1646567235362,121.869,86.698,86.63,17.319]
[1646567235563,5.769,86.698,86.63,17.319]
[1646567235761,46.75308768,86.702,86.631,40.25514402]
[1646567236162,46.75308768,86.702,86.632,65.86771738]
[1646567236363,46.75308768,86.702,86.64,17.3156]
[1646567236761,47.9345,86.704,86.641,17.51418575]
[1646567237167,47.9345,86.704,86.633,22.74095827]
[1646567237168,47.9345,86.704,86.642,43.12675911]
[1646567237563,47.9345,86.704,86.643,17.51418575]
[1646567237764,53.75094763,86.703,86.644,12.8405389]
[1646567237962,53.75094763,86.703,86.644,30.35472465]
[1646567238163,53.75094763,86.703,86.65,17.3119]
[1646567238364,5.768,86.702,86.65,17.3119]
[1646567238567,5.768,86.702,86.651,2.83613526]
[1646567239163,5.768,86.702,86.652,48.35353163]
[1646567239363,47.9345,86.704,86.652,48.35353163]
[1646567239563,47.9345,86.704,86.653,65.86771738]
[1646567239787,47.9345,86.704,86.66,17.3127]
[1646567239967,5.768,86.738,86.66,17.3127]
[1646567240165,60.65163821,86.719,86.661,40.29062385]
[1646567240366,60.65163821,86.719,86.661,43.12675911]
[1646567240568,60.65163821,86.719,86.662,17.51418575]
[1646567240765,60.65163821,86.719,86.662,43.12675911]
[1646567240966,60.65163821,86.719,86.65,57.6976]
[1646567240967,60.65163821,86.719,86.663,43.12675911]
[1646567241168,60.65163821,86.719,86.67,17.3081]
[1646567241368,60.65163821,86.719,86.671,59.29835713]
[1646567241767,60.65163821,86.719,86.671,62.13449239]
[1646567241966,60.65163821,86.719,86.672,2.83613526]
[1646567243169,60.65163821,86.719,86.68,17.3088]
[1646567244170,5.767,86.734,86.681,2.83613526]
[1646567244371,5.767,86.734,86.69,17.3061]
[1646567244671,5.766,86.747,86.69,17.3061]
[1646567244874,6.30916065,86.746,86.69,17.3061]
[1646567245074,5.765,86.745,86.69,17.3061]
[1646567245272,58.22616327,86.744,86.69,17.3061]
[1646567245473,12.07416065,86.743,86.69,31.15145941]
[1646567245673,6.30916065,86.742,86.69,31.15145941]
[1646567245872,5.765,86.741,86.69,31.15145941]
[1646567246073,6.30916065,86.74,86.69,31.15145941]
[1646567246275,5.766,86.739,86.69,31.15145941]
[1646567246676,5.766,86.753,86.691,28.44870862]
[1646567246877,46.7828,86.754,86.7,17.3012]
[1646567247174,4.71474604,86.787,86.7,17.3012]
[1646567247396,57.62511696,86.778,86.701,65.86771738]
[1646567247694,12.07089525,86.777,86.702,25.61257336]
[1646567247893,6.30689525,86.776,86.702,65.86771738]
[1646567248095,5.764,86.775,86.703,40.25514402]
[1646567248295,6.30689525,86.774,86.703,65.86771738]
[1646567248496,6.30689525,86.774,86.704,65.86771738]
[1646567248696,6.30689525,86.776,86.704,65.86771738]
[1646567248897,51.31822171,86.778,86.721,56.65330913]
[1646567249297,51.31822171,86.778,86.722,17.51418575]
[1646567249696,51.31822171,86.778,86.723,17.51418575]
[1646567249998,51.31822171,86.778,86.73,17.2935]
[1646567250397,51.31822171,86.778,86.73,20.12963526]
[1646567251998,51.31822171,86.778,86.73,17.2935]
[1646567252500,51.31822171,86.778,86.73,34.3018]
[1646567256404,5.763,86.805,86.73,34.3018]
[1646567256805,6.30628469,86.804,86.73,34.3018]
[1646567257004,5.763,86.803,86.73,34.3018]
[1646567257206,6.30628469,86.804,86.73,34.3018]
[1646567257404,60.85469462,86.803,86.73,34.3018]
[1646567257707,6.30628469,86.802,86.73,34.3018]
[1646567257905,6.30628469,86.802,86.731,2.83613526]
[1646567258205,6.30628469,86.802,86.74,17.2954]
[1646567260309,6.30628469,86.802,86.731,5.761]
[1646567260507,5.763,86.801,86.73,17.0083]
[1646567260708,6.30628469,86.8,86.73,17.0083]
[1646567260907,5.763,86.799,86.73,17.0083]
[1646567261112,6.30628469,86.798,86.73,17.0083]
[1646567261309,5.763,86.797,86.73,17.0083]
[1646567261509,6.30628469,86.796,86.73,17.0083]
[1646567261709,5.763,86.795,86.73,17.0083]
[1646567261911,6.30628469,86.794,86.73,17.0083]
[1646567262110,5.763,86.793,86.73,34.3061]
[1646567262310,6.30628469,86.792,86.73,34.3061]
[1646567262510,5.763,86.791,86.73,34.3061]
[1646567262913,5.763,86.801,86.73,34.3061]
[1646567263211,6.30620948,86.8,86.73,34.3061]
[1646567263412,121.863,86.799,86.73,34.3061]
[1646567263611,116.1,86.797,86.731,5.763]
[1646567263811,6.30620948,86.796,86.731,5.763]
[1646567264110,116.1,86.795,86.731,5.763]
[1646567264311,116.1,86.793,86.731,5.763]
[1646567264512,116.1,86.791,86.731,5.763]
[1646567264712,6.30620948,86.79,86.731,5.763]
[1646567264912,6.30620948,86.802,86.74,17.2963]
[1646567266717,6.30620948,86.802,86.741,5.761]
[1646567266917,6.30620948,86.802,86.75,17.2922]
[1646567267321,6.30620948,86.802,86.75,23.0532]
[1646567267718,6.30620948,86.802,86.75,17.2922]
[1646567270021,5.761,86.801,86.75,17.2922]
[1646567270220,6.30620948,86.8,86.75,34.5801]
[1646567270422,46.9927,86.806,86.751,5.761]
[1646567270623,6.30437075,86.805,86.76,17.2889]
[1646567270821,6.30437075,86.805,86.761,5.761]
[1646567271021,6.30437075,86.805,86.751,5.761]
[1646567271220,50.12973936,86.804,86.751,5.761]
[1646567271620,6.30437075,86.803,86.751,5.761]
[1646567271821,6.30437075,86.803,86.77,17.2892]
[1646567274224,46.9927,86.806,86.77,17.2892]
[1646567274225,6.30437075,86.802,86.77,17.2892]
[1646567274424,6.30437075,86.805,86.77,17.2892]
[1646567277527,5.761,86.823,86.76,17.2923]
[1646567277729,4.71474604,86.843,86.771,2.83613526]
[1646567277928,5.759,86.842,86.771,2.83613526]
[1646567278128,5.759,86.856,86.771,8.59513526]
[1646567278331,47.45071298,86.855,86.772,81.65925441]
[1646567278528,5.759,86.854,86.772,84.49538967]
[1646567278728,5.759,86.854,86.773,31.37555827]
[1646567279028,5.759,86.854,86.774,25.61655827]
[1646567279227,5.759,86.854,86.78,17.2844]
[1646567279834,5.759,86.854,86.781,8.59513526]
[1646567280234,5.759,86.854,86.782,2.83613526]
[1646567280434,5.759,86.854,86.783,5.759]
[1646567280836,5.759,86.854,86.784,2.83613526]
[1646567281053,5.759,86.854,86.785,5.759]
[1646567281254,5.759,86.854,86.8,17.2844]
[1646567282558,5.259,86.854,86.8,17.2844]
[1646567284460,5.259,86.854,86.801,2.83613526]
[1646567284658,5.259,86.854,86.81,17.281]
[1646567284860,47.45071298,86.855,86.81,17.281]
[1646567287059,5.758,86.889,86.81,17.281]
[1646567287260,22.7496,86.888,86.811,8.59313526]
[1646567287468,22.7496,86.888,86.83,17.2707]
[1646567287659,22.7496,86.888,86.83,24.4607]
[1646567287959,54.41306836,86.887,86.831,52.21001393]
[1646567288159,54.41306836,86.887,86.831,8.59213526]
[1646567288361,54.41306836,86.887,86.84,17.2745]
[1646567288561,170.51306836,86.887,86.832,2.83613526]
[1646567288759,116.1,86.885,86.823,17.4626]
[1646567288962,116.1,86.883,86.824,5.756]
[1646567289162,116.1,86.879,86.824,5.756]
[1646567289362,116.1,86.877,86.81,2.83613526]
[1646567289562,116.1,86.875,86.81,2.83613526]
[1646567289761,116.1,86.875,86.811,5.757]
[1646567289961,116.1,86.873,86.81,2.83613526]
[1646567290164,116.1,86.871,86.81,2.83613526]
[1646567290361,116.1,86.869,86.81,2.83613526]
[1646567290562,116.1,86.867,86.81,2.83613526]
[1646567290763,5.757,86.866,86.81,2.83613526]
[1646567291462,5.757,86.875,86.81,2.83613526]
[1646567292264,5.757,86.875,86.81,20.11823526]
[1646567293266,5.757,86.875,86.811,2.83613526]
[1646567293865,5.757,86.875,86.801,24.6938]
[1646567294265,5.757,86.875,86.802,28.45269353]
[1646567294966,5.757,86.875,86.802,2.83613526]
[1646567295166,139.5919,86.876,86.803,25.61655827]
[1646567295466,139.5919,86.876,86.803,28.45269353]
[1646567295767,116.1,86.874,86.803,25.61655827]
[1646567295967,116.1,86.872,86.803,25.61655827]
[1646567296366,116.1,86.872,86.803,51.22906006]
[1646567296566,5.757,86.871,86.803,51.22906006]
[1646567296766,116.1,86.872,86.804,25.61655827]
[1646567296967,116.1,86.875,86.81,17.2814]
[1646567297368,116.1,86.875,86.811,54.06519532]
[1646567297569,23.4919,86.876,86.811,54.06519532]